[Event "72nd RUS-ch Higher League 2019"]
[Site "Yaroslavl"]
[Date "2019.07.06"]
[Round "9.16"]
[White "Frolyanov, Dmitry"]
[Black "Bocharov, Ivan"]
[Result "1-0"]
[ECO "B94"]
[WhiteElo "2538"]
[BlackElo "2559"]
[Annotator "ChessBase"]
[PlyCount "125"]
[EventDate "2019.06.27"]
[EventType "swiss"]
[EventCountry "RUS"]
[SourceTitle "playchess.com"]
[Source "ChessBase"]
[SourceQuality "1"]
[TimeControl "40/5400+30:1800+30"]

1. e4 {[%emt 0:00:00]} c5 {[%emt 0:00:00]} 2. Nf3 {[%emt 0:00:00]} d6 {[%emt 0:00:00]} 3. d4 {[%emt 0:00:00]} cxd4 {[%emt 0:00:00]} 4. Nxd4 {[%emt 0:00:00]} Nf6 {[%emt 0:00:00]} 5. Nc3 {[%emt 0:00:03]} a6 {[%emt 0:00:00]} 6. Bg5 {[%emt 0:00:13]} Nbd7 {[%emt 0:00:05]} 7. Qe2 {[%emt 0:00:11]} h6 {[%emt 0:03:45]} 8. Bh4 {[%emt 0:01:59]} g6 {[%emt 0:01:03]} 9. f4 {[%emt 0:00:47]} e5 {[%emt 0:00:43]} 10. fxe5 {[%emt 0:00:53]} dxe5 {[%emt 0:00:25]} 11. O-O-O {[%emt 0:00:25]} Qc7 {[%emt 0:05:09]} 12. Nb3 {[%emt 0:00:21]} b5 {[%emt 0:04:38]} 13. Kb1 {[%emt 0:00:14]} Bb7 {[%emt 0:01:19]} 14. Nd5 {[%emt 0:00:20]} Nxd5 {[%emt 0:03:03]} 15. exd5 {[%emt 0:00:06]} Bd6 {[%emt 0:01:01]} 16. Qd2 {[%emt 0:01:24]} g5 {[%emt 0:05:29]} 17. Be1 {[%emt 0:06:15]} Nb6 {[%emt 0:06:35]} 18. h4 {[%emt 0:04:07]} Rg8 {[%emt 0:21:16]} 19. hxg5 {[%emt 0:00:47]} hxg5 {[%emt 0:00:02]} 20. Qf2 {[%emt 0:03:56]} Nxd5 {[%emt 0:02:56]} 21. Rh7 {[%emt 0:26:47]} Nf4 {[%emt 0:10:40]} 22. Ba5 {[%emt 0:08:42]} Qe7 {[%emt 0:00:05]} 23. Qb6 {[%emt 0:03:15]} Nd5 {[%emt 0:00:32]} 24. Qf2 {[%emt 0:02:32]} Bc7 {[%emt 0:01:11]} 25. Be2 {[%emt 0:04:35]} Nf4 {[%emt 0:09:17]} 26. Bg4 {[%emt 0:00:18]} Rd8 {[%emt 0:02:40]} 27. Rxd8+ {[%emt 0:02:07]} Qxd8 {[%emt 0:02:41]} 28. Nc5 {[%emt 0:12:34]} Bxa5 {[%emt 0:08:38]} 29. Nxb7 {[%emt 0:00:07]} Qb6 {[%emt 0:00:29]} 30. Qxb6 {[%emt 0:01:31]} Bxb6 {[%emt 0:00:01]} 31. Nd6+ {[%emt 0:00:16]} Ke7 {[%emt 0:00:01]} 32. Nxf7 {[%emt 0:00:36]} Kf6 {[%emt 0:00:01]} 33. Nd6 {[%emt 0:02:32]} Rf8 {[%emt 0:02:07]} 34. Rb7 {[%emt 0:03:19]} Bg1 {[%emt 0:00:46]} 35. g3 {[%emt 0:06:18]} Nd5 {[%emt 0:00:12]} 36. Bf3 {[%emt 0:02:53]} Ne3 {[%emt 0:01:27]} 37. Be2 {[%emt 0:03:00]} Nd5 {[%emt 0:06:10]} 38. a3 {[%emt 0:01:21]} Ke6 {[%emt 0:01:24]} 39. Ne4 {[%emt 0:00:50]} Nf6 {[%emt 0:00:01]} 40. Nxg5+ {[%emt 0:00:00]} Kf5 {[%emt 0:00:00]} 41. Rg7 {[%emt 0:05:45]} Rh8 {[%emt 0:09:15]} 42. Bd3+ {[%emt 0:03:56]} e4 {[%emt 0:00:05]} 43. Nxe4 {[%emt 0:00:34]} Nxe4 {[%emt 0:00:01]} 44. Re7 {[%emt 0:00:18]} Kg4 {[%emt 0:00:36]} 45. Bxe4 {[%emt 0:02:56]} Kxg3 {[%emt 0:00:08]} 46. Rg7+ {[%emt 0:00:36]} Kf2 {[%emt 0:00:13]} 47. Rg2+ {[%emt 0:01:25]} Kf1 {[%emt 0:00:07]} 48. Rg6 {[%emt 0:00:12]} Rb8 {[%emt 0:01:44]} 49. Bd3+ {[%emt 0:00:53]} Kf2 {[%emt 0:00:01]} 50. Rxa6 {[%emt 0:00:08]} b4 {[%emt 0:00:03]} 51. axb4 {[%emt 0:01:12]} Rxb4 {[%emt 0:00:02]} 52. c3 {[%emt 0:00:17]} Rb8 {[%emt 0:00:05]} 53. Kc2 {[%emt 0:00:17]} Ke3 {[%emt 0:00:45]} 54. Re6+ {[%emt 0:00:18]} Kf4 {[%emt 0:00:01]} 55. b4 {[%emt 0:00:28]} Be3 {[%emt 0:00:02]} 56. Kb3 {[%emt 0:01:45]} Bd2 {[%emt 0:00:03]} 57. Ba6 {[%emt 0:00:54]} Kf3 {[%emt 0:02:26]} 58. Rd6 {[%emt 0:01:40]} Be1 {[%emt 0:00:26]} 59. Rd7 {[%emt 0:01:25]} Kf4 {[%emt 0:00:55]} 60. Rf7+ {[%emt 0:01:38]} Ke3 {[%emt 0:00:57]} 61. Re7+ {[%emt 0:02:51]} Kd2 {[%emt 0:00:35]} 62. c4 {[%emt 0:01:55]} Bh4 {[%emt 0:00:06]} 63. Rd7+ {[%emt 0:00:16] Rc8} 1-0

[Event "72nd RUS-ch Higher League 2019"]
[Site "Yaroslavl"]
[Date "2019.07.06"]
[Round "9.17"]
[White "Drygalov, Andrey"]
[Black "Lomasov, Semyon"]
[Result "0-1"]
[ECO "E10"]
[WhiteElo "2494"]
[BlackElo "2542"]
[Annotator "ChessBase"]
[PlyCount "82"]
[EventDate "2019.06.27"]
[EventType "swiss"]
[EventCountry "RUS"]
[SourceTitle "playchess.com"]
[Source "ChessBase"]
[SourceQuality "1"]
[TimeControl "40/5400+30:1800+30"]

1. d4 {[%emt 0:00:00]} Nf6 {[%emt 0:01:22]} 2. c4 {[%emt 0:00:00]} e6 {[%emt 0:00:05]} 3. Nf3 {[%emt 0:00:00]} c5 {[%emt 0:00:04]} 4. d5 {[%emt 0:00:50]} b5 {[%emt 0:00:06]} 5. dxe6 {[%emt 0:00:15]} fxe6 {[%emt 0:00:05]} 6. cxb5 {[%emt 0:00:05]} a6 {[%emt 0:00:07]} 7. bxa6 {[%emt 0:01:17]} Bxa6 {[%emt 0:00:07]} 8. g3 {[%emt 0:02:22]} Nc6 {[%emt 0:00:20]} 9. Bg2 {[%emt 0:09:39]} Be7 {[%emt 0:00:24]} 10. O-O {[%emt 0:00:26]} O-O {[%emt 0:00:06]} 11. Re1 {[%emt 0:03:07]} d5 {[%emt 0:00:54]} 12. Bf4 {[%emt 0:06:14]} Qb6 {[%emt 0:14:30]} 13. Qb3 {[%emt 0:18:36]} Qxb3 {[%emt 0:02:39]} 14. axb3 {[%emt 0:00:04]} Nb4 {[%emt 0:00:18]} 15. Na3 {[%emt 0:00:30]} Nd7 {[%emt 0:15:01]} 16. Bh3 {[%emt 0:01:57]} Kf7 {[%emt 0:00:06]} 17. Rac1 {[%emt 0:14:35]} Rg8 {[%emt 0:15:46]} 18. Ng5+ {[%emt 0:01:11]} Bxg5 {[%emt 0:00:04]} 19. Bxg5 {[%emt 0:00:02]} h6 {[%emt 0:01:15]} 20. Be3 {[%emt 0:01:53]} Rgc8 {[%emt 0:01:23]} 21. Nc2 {[%emt 0:08:12]} Rab8 {[%emt 0:00:35]} 22. Na1 {[%emt 0:09:54]} Ke7 {[%emt 0:02:37]} 23. Bf1 {[%emt 0:02:57]} d4 {[%emt 0:14:07]} 24. Bd2 {[%emt 0:00:05]} e5 {[%emt 0:07:38]} 25. f3 Kd6 26. Red1 {[%emt 0:04:22]} Nf6 {[%emt 0:03:55]} 27. Kf2 {[%emt 0:00:30]} Nfd5 {[%emt 0:00:30]} 28. e4 {[%emt 0:04:07]} Bxf1 {[%emt 0:05:15]} 29. Kxf1 Ne7 {[%emt 0:00:06]} 30. Bxb4 {[%emt 0:01:56]} Rxb4 {[%emt 0:02:20]} 31. Rc4 Nc6 {[%emt 0:00:30]} 32. Rdc1 {[%emt 0:05:04]} Rb5 {[%emt 0:00:16]} 33. Ra4 {[%emt 0:02:32]} g5 {[%emt 0:00:30]} 34. Ke2 {[%emt 0:00:30]} Nb4 {[%emt 0:02:52]} 35. Kd2 {[%emt 0:00:34]} d3 {[%emt 0:00:14]} 36. Rxb4 {[%emt 0:01:19]} Rxb4 {[%emt 0:00:06]} 37. Kxd3 {[%emt 0:00:04]} Ra8 {[%emt 0:01:20]} 38. Kc3 {[%emt 0:00:44]} Rf8 {[%emt 0:00:35]} 39. Rf1 {[%emt 0:00:36]} g4 {[%emt 0:01:16]} 40. Nc2 {[%emt 0:00:00]} Rxf3+ {[%emt 0:00:00]} 41. Rxf3 {[%emt 0:03:16]} gxf3 {[%emt 0:00:17]} 0-1

[Event "72nd RUS-ch Higher League 2019"]
[Site "Yaroslavl"]
[Date "2019.07.06"]
[Round "9.18"]
[White "Nesterov, Arseniy"]
[Black "Triapishko, Alexandr"]
[Result "1/2-1/2"]
[ECO "D70"]
[WhiteElo "2423"]
[BlackElo "2512"]
[Annotator "ChessBase"]
[PlyCount "62"]
[EventDate "2019.06.27"]
[EventType "swiss"]
[EventCountry "RUS"]
[SourceTitle "playchess.com"]
[Source "ChessBase"]
[SourceQuality "1"]
[TimeControl "40/5400+30:1800+30"]

1. d4 {[%emt 0:00:00]} Nf6 {[%emt 0:00:00]} 2. c4 {[%emt 0:00:00]} g6 {[%emt 0:00:00]} 3. f3 {[%emt 0:00:00]} d5 {[%emt 0:01:07]} 4. cxd5 {[%emt 0:00:48]} Nxd5 {[%emt 0:02:07]} 5. e4 {[%emt 0:01:01]} Nb6 {[%emt 0:00:24]} 6. Nc3 {[%emt 0:03:36]} Bg7 {[%emt 0:02:34]} 7. Be3 {[%emt 0:01:06]} O-O {[%emt 0:00:46]} 8. Qd2 {[%emt 0:06:20]} Nc6 {[%emt 0:01:52]} 9. O-O-O {[%emt 0:03:55]} Qd6 {[%emt 0:03:08]} 10. Kb1 {[%emt 0:05:43]} Rd8 {[%emt 0:04:42]} 11. Nb5 {[%emt 0:05:22]} Qd7 {[%emt 0:02:50]} 12. d5 {[%emt 0:01:09]} a6 {[%emt 0:00:56]} 13. Nc3 {[%emt 0:04:39]} Na5 {[%emt 0:03:13]} 14. Qc1 {[%emt 0:07:14]} Qe8 {[%emt 0:04:33]} 15. h4 {[%emt 0:01:22]} e6 {[%emt 0:01:53]} 16. Bg5 {[%emt 0:01:04]} Rd6 {[%emt 0:03:17]} 17. Bf4 {[%emt 0:02:52]} exd5 {[%emt 0:05:04]} 18. Bxd6 {[%emt 0:00:28]} cxd6 {[%emt 0:00:14]} 19. Nxd5 {[%emt 0:00:43]} Nxd5 {[%emt 0:00:43]} 20. Rxd5 {[%emt 0:01:37]} b5 {[%emt 0:02:50]} 21. Rxd6 {[%emt 0:01:40]} Be6 {[%emt 0:01:55]} 22. Nh3 {[%emt 0:01:31]} Rc8 {[%emt 0:03:18]} 23. Qd2 {[%emt 0:01:52]} b4 {[%emt 0:03:18]} 24. Qxb4 {[%emt 0:07:15]} Rb8 {[%emt 0:03:48]} 25. Rb6 {[%emt 0:00:56]} Bxa2+ {[%emt 0:02:06]} 26. Kxa2 {[%emt 0:00:33]} Rxb6 {[%emt 0:00:11]} 27. Qxb6 {[%emt 0:00:17]} Qa4+ {[%emt 0:00:11]} 28. Kb1 {[%emt 0:00:04]} Qd1+ {[%emt 0:00:11]} 29. Ka2 {[%emt 0:00:07]} Qa4+ {[%emt 0:00:08]} 30. Kb1 {[%emt 0:00:07]} Qd1+ {[%emt 0:00:09]} 31. Ka2 {[%emt 0:00:10]} Qa4+ {[%emt 0:00:11]} 1/2-1/2

[Event "72nd RUS-ch Higher League 2019"]
[Site "Yaroslavl"]
[Date "2019.07.06"]
[Round "9.19"]
[White "Murzin, Volodar"]
[Black "Yanchenko, Roman"]
[Result "1-0"]
[ECO "C16"]
[WhiteElo "2418"]
[BlackElo "2478"]
[Annotator "ChessBase"]
[PlyCount "141"]
[EventDate "2019.06.27"]
[EventType "swiss"]
[EventCountry "RUS"]
[SourceTitle "playchess.com"]
[Source "ChessBase"]
[SourceQuality "1"]
[TimeControl "40/5400+30:1800+30"]

1. e4 {[%emt 0:00:00]} e6 {[%emt 0:00:00]} 2. d4 {[%emt 0:00:00]} d5 {[%emt 0:00:00]} 3. Nc3 {[%emt 0:00:10]} Bb4 {[%emt 0:00:00]} 4. e5 {[%emt 0:00:06]} Ne7 {[%emt 0:01:57]} 5. a3 {[%emt 0:00:19]} Bxc3+ {[%emt 0:00:03]} 6. bxc3 {[%emt 0:00:05]} b6 {[%emt 0:00:43]} 7. Qg4 {[%emt 0:00:16]} Kf8 {[%emt 0:00:03]} 8. Nh3 {[%emt 0:00:32]} Ba6 {[%emt 0:02:49]} 9. Bxa6 {[%emt 0:01:01]} Nxa6 {[%emt 0:00:04]} 10. Nf4 {[%emt 0:00:48]} Nf5 {[%emt 0:17:26]} 11. Qf3 {[%emt 0:02:53]} c5 {[%emt 0:01:59]} 12. Nxe6+ {[%emt 0:01:15]} fxe6 {[%emt 0:00:04]} 13. g4 {[%emt 0:00:05]} Qd7 {[%emt 0:00:04]} 14. gxf5 {[%emt 0:00:31]} exf5 {[%emt 0:00:18]} 15. Be3 {[%emt 0:13:46]} cxd4 {[%emt 0:06:54]} 16. Bxd4 {[%emt 0:00:33]} Qe6 {[%emt 0:00:07]} 17. c4 {[%emt 0:07:32]} Rd8 {[%emt 0:03:53]} 18. O-O-O {[%emt 0:00:52]} Kf7 {[%emt 0:06:57]} 19. cxd5 {[%emt 0:09:33]} Rxd5 {[%emt 0:00:12]} 20. Bxb6 {[%emt 0:00:25]} Rxd1+ {[%emt 0:10:50]} 21. Rxd1 {[%emt 0:00:23]} Rc8 {[%emt 0:00:02]} 22. Rd6 {[%emt 0:10:00]} Qc4 {[%emt 0:00:04]} 23. Qxf5+ {[%emt 0:00:24]} Kg8 {[%emt 0:00:03]} 24. Bd4 {[%emt 0:05:08]} g6 {[%emt 0:03:51]} 25. Qe6+ {[%emt 0:00:49]} Qxe6 {[%emt 0:00:05]} 26. Rxe6 {[%emt 0:00:03]} Nc5 {[%emt 0:00:03]} 27. Rd6 {[%emt 0:03:28]} Kf7 {[%emt 0:01:41]} 28. Bxc5 {[%emt 0:03:27]} Rxc5 {[%emt 0:00:02]} 29. Rd7+ {[%emt 0:00:01]} Ke6 {[%emt 0:00:07]} 30. Rxa7 {[%emt 0:00:14]} Rxe5 {[%emt 0:00:03]} 31. Rxh7 {[%emt 0:00:05]} Rf5 {[%emt 0:00:02]} 32. a4 {[%emt 0:00:31]} Rxf2 {[%emt 0:00:48]} 33. a5 {[%emt 0:00:19]} Rf5 {[%emt 0:00:05]} 34. a6 {[%emt 0:00:14]} Ra5 {[%emt 0:00:04]} 35. a7 {[%emt 0:00:07]} Kd5 {[%emt 0:00:05]} 36. Kd2 {[%emt 0:00:19]} Kd4 {[%emt 0:00:53]} 37. c3+ {[%emt 0:01:06]} Kc4 {[%emt 0:00:03]} 38. Rc7+ {[%emt 0:00:04]} Kd5 {[%emt 0:00:03]} 39. Kd3 {[%emt 0:00:13]} Ra3 {[%emt 0:00:06]} 40. Kc2 {[%emt 0:00:00]} Kd6 {[%emt 0:00:00]} 41. Kb2 {[%emt 0:03:24]} Ra5 {[%emt 0:00:15]} 42. Rg7 {[%emt 0:00:14]} Kc5 {[%emt 0:00:05]} 43. Kb3 {[%emt 0:00:25]} Ra6 {[%emt 0:00:05]} 44. h4 {[%emt 0:02:13]} Ra1 {[%emt 0:00:02]} 45. Kc2 {[%emt 0:01:07]} Ra4 {[%emt 0:00:32]} 46. Kd3 {[%emt 0:00:15]} Kd5 {[%emt 0:00:03]} 47. Rxg6 {[%emt 0:02:40]} Rxa7 {[%emt 0:00:06]} 48. h5 {[%emt 0:00:14]} Ra1 {[%emt 0:00:23]} 49. Rg5+ {[%emt 0:01:06]} Kd6 {[%emt 0:01:05]} 50. Kd4 {[%emt 0:00:11]} Rd1+ {[%emt 0:00:07]} 51. Kc4 {[%emt 0:00:04]} Rh1 {[%emt 0:00:04]} 52. Rg6+ {[%emt 0:00:08]} Kc7 {[%emt 0:00:06]} 53. h6 {[%emt 0:00:08]} Rh5 {[%emt 0:00:06]} 54. Kb4 {[%emt 0:00:10]} Kb7 {[%emt 0:00:07]} 55. c4 {[%emt 0:00:05]} Kc7 {[%emt 0:00:03]} 56. c5 {[%emt 0:01:47]} Rh1 {[%emt 0:00:02]} 57. Kc4 {[%emt 0:00:07]} Rd1 {[%emt 0:00:06]} 58. Rd6 {[%emt 0:00:28]} Rh1 {[%emt 0:00:01]} 59. Ra6 {[%emt 0:02:40]} Rd1 {[%emt 0:00:17]} 60. Kc3 {[%emt 0:01:04]} Rh1 {[%emt 0:02:53]} 61. Kd4 {[%emt 0:01:13]} Rh5 {[%emt 0:00:05]} 62. Rg6 {[%emt 0:01:39]} Kd7 {[%emt 0:00:07]} 63. Kc4 {[%emt 0:00:39]} Rh1 {[%emt 0:00:03]} 64. c6+ {[%emt 0:00:53]} Kc7 {[%emt 0:00:04]} 65. Kd5 {[%emt 0:00:04]} Rh5+ {[%emt 0:00:10]} 66. Ke6 {[%emt 0:00:10]} Kxc6 {[%emt 0:00:06]} 67. Kf7+ {[%emt 0:00:10]} Kd7 {[%emt 0:00:35]} 68. Kg7 {[%emt 0:00:06]} Re5 {[%emt 0:00:05]} 69. h7 {[%emt 0:00:09]} Re7+ {[%emt 0:00:06]} 70. Kh6 {[%emt 0:00:06]} Re8 {[%emt 0:00:02]} 71. Rg7+ {[%emt 0:00:30]} 1-0

[Event "72nd RUS-ch Higher League 2019"]
[Site "Yaroslavl"]
[Date "2019.07.06"]
[Round "9.21"]
[White "Khanin, Semen"]
[Black "Galaktionov, Artem"]
[Result "1-0"]
[ECO "B12"]
[WhiteElo "2529"]
[BlackElo "2371"]
[Annotator "ChessBase"]
[PlyCount "98"]
[EventDate "2019.06.27"]
[EventType "swiss"]
[EventCountry "RUS"]
[SourceTitle "playchess.com"]
[Source "ChessBase"]
[SourceQuality "1"]
[TimeControl "40/5400+30:1800+30"]

1. e4 {[%emt 0:00:00]} c6 {[%emt 0:01:08]} 2. d4 {[%emt 0:00:00]} d5 {[%emt 0:00:04]} 3. e5 {[%emt 0:00:00]} Bf5 {[%emt 0:00:03]} 4. Nf3 {[%emt 0:00:00]} e6 {[%emt 0:00:04]} 5. Be2 {[%emt 0:00:00]} Ne7 {[%emt 0:00:02]} 6. O-O {[%emt 0:00:00]} c5 {[%emt 0:00:01]} 7. c4 {[%emt 0:03:22]} Nbc6 {[%emt 0:00:06]} 8. Na3 {[%emt 0:01:43]} a6 {[%emt 0:18:33]} 9. Be3 {[%emt 0:17:23]} cxd4 {[%emt 0:04:04]} 10. Nxd4 {[%emt 0:02:04]} Nxd4 {[%emt 0:00:27]} 11. Qxd4 {[%emt 0:07:52]} Nc6 {[%emt 0:00:22]} 12. Qf4 {[%emt 0:01:00]} d4 {[%emt 0:16:52]} 13. Rfd1 {[%emt 0:01:42]} Bxa3 {[%emt 0:00:37]} 14. bxa3 {[%emt 0:01:14]} Qa5 {[%emt 0:00:04]} 15. Bxd4 {[%emt 0:01:36]} O-O-O {[%emt 0:02:10]} 16. Bf3 {[%emt 0:21:35]} Nxd4 {[%emt 0:10:38]} 17. Rxd4 {[%emt 0:00:06]} g5 {[%emt 0:02:53]} 18. Rxd8+ {[%emt 0:02:43]} Rxd8 {[%emt 0:00:26]} 19. Qxg5 {[%emt 0:00:57]} Qxe5 {[%emt 0:00:16]} 20. Rc1 {[%emt 0:11:39]} Qb2 {[%emt 0:04:40]} 21. h3 {[%emt 0:02:53]} Qd2 {[%emt 0:03:14]} 22. Qxd2 {[%emt 0:02:03]} Rxd2 {[%emt 0:00:06]} 23. Rc3 {[%emt 0:02:22]} Kc7 {[%emt 0:00:58]} 24. c5 {[%emt 0:01:18]} e5 {[%emt 0:07:38]} 25. Re3 {[%emt 0:06:30]} f6 {[%emt 0:00:05]} 26. g4 {[%emt 0:01:23]} Bg6 {[%emt 0:00:25]} 27. Bg2 {[%emt 0:01:30]} Rc2 28. g5 Rxc5 {[%emt 0:05:18]} 29. gxf6 {[%emt 0:03:42]} Kd6 {[%emt 0:00:22]} 30. Bxb7 {[%emt 0:00:24]} a5 {[%emt 0:00:03]} 31. Rb3 {[%emt 0:01:34]} Bf7 {[%emt 0:02:07]} 32. Rb6+ {[%emt 0:00:16]} Kc7 {[%emt 0:00:06]} 33. Rb2 {[%emt 0:00:04]} Kd6 {[%emt 0:06:06]} 34. Be4 {[%emt 0:00:38]} h6 {[%emt 0:00:03]} 35. Rb6+ {[%emt 0:01:03]} Kd7 {[%emt 0:00:01]} 36. Rb7+ {[%emt 0:00:36]} Ke6 {[%emt 0:00:01]} 37. Rb6+ {[%emt 0:00:06]} Kd7 {[%emt 0:00:00]} 38. Ra6 {[%emt 0:00:41]} Be6 {[%emt 0:04:39]} 39. Ra7+ {[%emt 0:00:55]} Kd6 {[%emt 0:00:01]} 40. Ra6+ {[%emt 0:00:00]} Kd7 {[%emt 0:00:00]} 41. Kh2 {[%emt 0:14:55]} Rc8 {[%emt 0:05:42]} 42. Rxa5 {[%emt 0:02:15]} Rf8 {[%emt 0:00:02]} 43. Ra7+ {[%emt 0:00:14]} Kd6 {[%emt 0:00:01]} 44. Ra6+ {[%emt 0:03:43]} Kd7 {[%emt 0:01:01]} 45. Bf3 {[%emt 0:03:25]} Bxa2 {[%emt 0:02:28]} 46. Bh5 {[%emt 0:00:25]} Bc4 {[%emt 0:00:28]} 47. Ra7+ {[%emt 0:00:28]} Ke6 {[%emt 0:00:01]} 48. f7 {[%emt 0:00:06]} Kf6 {[%emt 0:00:03]} 49. h4 Rc8 {[%emt 0:05:18]} 1-0

[Event "72nd RUS-ch Higher League 2019"]
[Site "Yaroslavl"]
[Date "2019.07.06"]
[Round "9.22"]
[White "Levin, Evgeny A."]
[Black "Rychkov, Oleg"]
[Result "1/2-1/2"]
[ECO "D31"]
[WhiteElo "2504"]
[BlackElo "2409"]
[Annotator "ChessBase"]
[PlyCount "61"]
[EventDate "2019.06.27"]
[EventType "swiss"]
[EventCountry "RUS"]
[SourceTitle "playchess.com"]
[Source "ChessBase"]
[SourceQuality "1"]
[TimeControl "40/5400+30:1800+30"]

1. d4 {[%emt 0:00:00]} d5 {[%emt 0:00:00]} 2. c4 {[%emt 0:00:00]} e6 {[%emt 0:00:00]} 3. Nc3 {[%emt 0:00:00]} a6 {[%emt 0:00:09]} 4. cxd5 {[%emt 0:00:23]} exd5 {[%emt 0:00:08]} 5. Qb3 Nf6 {[%emt 0:01:21]} 6. Bg5 {[%emt 0:00:21]} c6 {[%emt 0:00:22]} 7. e4 {[%emt 0:01:23]} Be7 {[%emt 0:06:25]} 8. e5 {[%emt 0:01:55]} Nfd7 {[%emt 0:00:06]} 9. Bxe7 {[%emt 0:01:44]} Qxe7 {[%emt 0:00:04]} 10. f4 {[%emt 0:00:23]} f6 {[%emt 0:00:44]} 11. Nf3 {[%emt 0:01:13]} fxe5 {[%emt 0:00:23]} 12. fxe5 {[%emt 0:00:11]} O-O {[%emt 0:00:16]} 13. O-O-O {[%emt 0:00:41]} Rf7 {[%emt 0:09:00]} 14. h4 {[%emt 0:25:24]} h6 {[%emt 0:01:40]} 15. Bd3 {[%emt 0:00:49]} Nf8 {[%emt 0:01:03]} 16. Ne2 {[%emt 0:12:52]} a5 {[%emt 0:06:16]} 17. Rhf1 {[%emt 0:22:02]} a4 {[%emt 0:07:50]} 18. Qa3 {[%emt 0:00:45]} Qxa3 {[%emt 0:01:09]} 19. bxa3 {[%emt 0:00:05]} Bf5 {[%emt 0:00:37]} 20. Bxf5 {[%emt 0:03:40]} Rxf5 {[%emt 0:00:05]} 21. g4 {[%emt 0:00:35]} Rf7 {[%emt 0:00:09]} 22. Ng3 {[%emt 0:00:57]} Nbd7 {[%emt 0:05:25]} 23. Nf5 {[%emt 0:06:18]} Ne6 {[%emt 0:01:18]} 24. h5 {[%emt 0:02:17]} Nb6 {[%emt 0:02:41]} 25. N3h4 {[%emt 0:02:21]} Nc4 {[%emt 0:01:49]} 26. Ng6 {[%emt 0:00:25]} Re8 {[%emt 0:00:47]} 27. Rde1 {[%emt 0:05:41]} Ng5 {[%emt 0:06:17]} 28. Nf4 {[%emt 0:04:56]} Ne6 {[%emt 0:04:27]} 29. Ng6 {[%emt 0:00:25]} Ng5 {[%emt 0:03:17]} 30. Nf4 {[%emt 0:00:06]} Ne6 {[%emt 0:10:40]} 31. Ng6 {[%emt 0:00:08]} 1/2-1/2

[Event "72nd RUS-ch Higher League 2019"]
[Site "Yaroslavl"]
[Date "2019.07.06"]
[Round "9.23"]
[White "Sadovsky, Artem"]
[Black "Nozdrachev, Vladislav"]
[Result "0-1"]
[ECO "A14"]
[WhiteElo "2416"]
[BlackElo "2481"]
[Annotator "ChessBase"]
[PlyCount "78"]
[EventDate "2019.06.27"]
[EventType "swiss"]
[EventCountry "RUS"]
[SourceTitle "playchess.com"]
[Source "ChessBase"]
[SourceQuality "1"]
[TimeControl "40/5400+30:1800+30"]

1. Nf3 {[%emt 0:02:01]} d5 {[%emt 0:00:00]} 2. g3 {[%emt 0:00:16]} Nf6 {[%emt 0:00:00]} 3. Bg2 {[%emt 0:00:12]} e6 {[%emt 0:00:00]} 4. c4 {[%emt 0:00:44]} Be7 {[%emt 0:00:00]} 5. O-O {[%emt 0:00:14]} O-O {[%emt 0:00:02]} 6. b3 {[%emt 0:00:58]} c5 {[%emt 0:00:06]} 7. Bb2 {[%emt 0:00:22]} b6 {[%emt 0:00:05]} 8. Nc3 {[%emt 0:07:56]} Bb7 {[%emt 0:01:12]} 9. cxd5 {[%emt 0:00:15]} Nxd5 {[%emt 0:00:13]} 10. d4 {[%emt 0:09:19]} Nd7 {[%emt 0:00:18]} 11. Qd3 {[%emt 0:06:27]} N7f6 {[%emt 0:05:44]} 12. Rfd1 {[%emt 0:02:26]} Rc8 {[%emt 0:04:50]} 13. Rac1 {[%emt 0:01:20]} Nxc3 {[%emt 0:05:19]} 14. Bxc3 {[%emt 0:01:17]} c4 {[%emt 0:05:15]} 15. bxc4 {[%emt 0:01:03]} Ba3 {[%emt 0:00:19]} 16. Ra1 {[%emt 0:02:46]} Be4 {[%emt 0:00:30]} 17. Qd2 {[%emt 0:35:47]} Rxc4 {[%emt 0:00:09]} 18. Ne5 {[%emt 0:05:48]} Rc7 {[%emt 0:01:29]} 19. f3 {[%emt 0:01:00]} Nd5 {[%emt 0:04:30]} 20. fxe4 {[%emt 0:00:11]} Nxc3 {[%emt 0:00:04]} 21. Re1 {[%emt 0:00:07]} Bb2 {[%emt 0:05:52]} 22. e3 {[%emt 0:05:08]} Bxa1 {[%emt 0:00:03]} 23. Rxa1 {[%emt 0:00:04]} Qd6 {[%emt 0:01:01]} 24. Rf1 {[%emt 0:01:59]} f6 {[%emt 0:05:46]} 25. Nd3 {[%emt 0:01:33]} e5 {[%emt 0:00:08]} 26. d5 {[%emt 0:00:20]} g6 {[%emt 0:00:06]} 27. g4 {[%emt 0:02:07]} b5 {[%emt 0:00:58]} 28. Qe1 {[%emt 0:01:41]} Nxa2 {[%emt 0:02:24]} 29. g5 {[%emt 0:03:19]} Rc3 {[%emt 0:00:13]} 30. Nf2 {[%emt 0:04:39]} fxg5 {[%emt 0:01:09]} 31. Qd2 {[%emt 0:00:35]} Ra3 {[%emt 0:00:46]} 32. Bh3 {[%emt 0:00:22]} Nc3 {[%emt 0:00:24]} 33. Be6+ {[%emt 0:00:42]} Kg7 {[%emt 0:00:04]} 34. Qd3 {[%emt 0:01:33]} b4 {[%emt 0:02:03]} 35. Qc4 {[%emt 0:00:55]} Ra2 {[%emt 0:00:37]} 36. Qc6 {[%emt 0:01:39]} Qxc6 {[%emt 0:00:30]} 37. dxc6 {[%emt 0:00:06]} Rc2 {[%emt 0:00:08]} 38. Bd7 {[%emt 0:01:10]} b3 {[%emt 0:00:14]} 39. Nd3 {[%emt 0:00:37]} Ne2+ {[%emt 0:00:05]} 0-1

[Event "72nd RUS-ch Higher League 2019"]
[Site "Yaroslavl"]
[Date "2019.07.06"]
[Round "9.24"]
[White "Bigaliev, Renat"]
[Black "Bimiev, Ahmad"]
[Result "1/2-1/2"]
[ECO "C89"]
[WhiteElo "2427"]
[BlackElo "2238"]
[Annotator "NA"]
[PlyCount "54"]
[EventDate "2019.06.27"]
[EventType "swiss"]
[EventCountry "RUS"]
[SourceTitle "playchess.com"]
[Source "ChessBase"]
[SourceQuality "1"]
[TimeControl "40/5400+30:1800+30"]

1. e4 {[%emt 0:00:00]} e5 {[%emt 0:00:00]} 2. Nf3 {[%emt 0:00:00]} Nc6 {[%emt 0:00:00]} 3. Bb5 {[%emt 0:00:09]} a6 {[%emt 0:00:00]} 4. Ba4 {[%emt 0:00:17]} Nf6 {[%emt 0:00:15]} 5. O-O {[%emt 0:00:16]} Be7 {[%emt 0:00:15]} 6. Re1 {[%emt 0:00:15]} b5 {[%emt 0:00:38]} 7. Bb3 {[%emt 0:00:05]} O-O {[%emt 0:02:04]} 8. c3 {[%emt 0:04:30]} d5 {[%emt 0:03:28]} 9. exd5 {[%emt 0:01:15]} Nxd5 {[%emt 0:00:09]} 10. Nxe5 {[%emt 0:00:07]} Nxe5 {[%emt 0:00:07]} 11. Rxe5 {[%emt 0:00:06]} c6 {[%emt 0:00:10]} 12. d4 {[%emt 0:02:32]} Bd6 {[%emt 0:02:47]} 13. Re1 {[%emt 0:00:09]} Qh4 {[%emt 0:00:08]} 14. g3 {[%emt 0:00:06]} Qh3 {[%emt 0:00:23]} 15. Be3 {[%emt 0:03:48]} Bg4 {[%emt 0:05:21]} 16. Qd3 {[%emt 0:00:06]} Rae8 {[%emt 0:00:07]} 17. Nd2 {[%emt 0:00:05]} Qh5 {[%emt 0:00:41]} 18. a4 {[%emt 0:01:11]} Re6 {[%emt 0:03:02]} 19. axb5 {[%emt 0:00:50]} axb5 {[%emt 0:00:06]} 20. Nf1 {[%emt 0:05:15]} Bf5 {[%emt 0:04:40]} 21. Qe2 {[%emt 0:03:17]} Bg4 {[%emt 0:01:41]} 22. Qd3 {[%emt 0:02:43]} Bf5 {[%emt 0:00:45]} 23. Qd1 {[%emt 0:08:38]} Bg4 {[%emt 0:03:22]} 24. Qd3 {[%emt 0:01:54]} Bf5 {[%emt 0:00:25]} 25. Qd1 {[%emt 0:00:48]} Bg4 {[%emt 0:00:08]} 26. Qd3 {[%emt 0:00:07]} Bf5 {[%emt 0:00:07]} 27. Qd1 {[%emt 0:01:07]} Bg4 {[%emt 0:00:19]} 1/2-1/2